fUSD/lending_fUSD_20240330
["ID","MTS","AMOUNT","RATE_DAILY","PERIOD"]
[321051197,1711827046468,-389.1705934,0.00039899,4]
[321051198,1711827046477,-50.09651351,0.000399,2]
[321051199,1711827046530,-405130.28544411,0.000399,2]
[321051200,1711827046539,-153.22347234,0.000399,6]
[321051201,1711827046549,-1193.3654694,0.00039915,2]
[321051202,1711827046559,-3976.1812612,0.00039915,2]
[321051203,1711827046568,-1200.464047,0.00039915,2]
[321051204,1711827046577,-6994.5965046,0.00039915,2]
[321051205,1711827046587,-66001.7752902,0.00039942,5]
[321051206,1711827046596,-865.42132727,0.0004,4]
[321051207,1711827046605,-192.28215317,0.0004,2]
[321051208,1711827046614,-5742.09513247,0.0004,4]
[321051209,1711827046623,-1874.09507576,0.0004,2]
[321051210,1711827046634,-1494.0,0.0004,3]
[321051211,1711827046644,-2000.0,0.0004,3]
[321051212,1711827046654,-22063.93055245,0.0004,4]
[321051213,1711827046665,-6229.01642012,0.0004,2]
[321051214,1711827046674,-40000.0,0.0004,2]
[321051215,1711827046683,-670.0,0.0004,7]
[321051216,1711827046693,-540.0,0.0004,7]
[321051217,1711827046702,-555.0,0.0004,7]
[321051218,1711827046711,-1091.87298292,0.00040033,2]
[321051219,1711827046720,-200.0,0.00040082,2]
[321051220,1711827046730,-1000.0,0.0004011,2]
[321051221,1711827046739,-540.54,0.00040135,2]
[321051222,1711827046749,-691.0,0.000402,3]
[321051223,1711827046758,-150.0,0.000402,6]
[321051224,1711827046767,-305.0,0.000402,3]
[321051225,1711827046776,-464.29593286,0.00040231,2]
[321051226,1711827046786,-164.99,0.00040313,2]
[321051227,1711827046796,-170.82,0.00040335,2]
[321051228,1711827046805,-800.0,0.0004041,10]
[321051229,1711827046814,-700.0,0.0004041,10]
[321051230,1711827046824,-5969.37142957,0.00040452,2]
[321051231,1711827046834,-150.0,0.00040587,2]
[321051232,1711827046843,-396.0,0.00040587,2]
[321051233,1711827046852,-2984.0,0.00040587,2]
[321051234,1711827046861,-1139.0,0.00040587,2]
[321051235,1711827046871,-1628.0,0.00040587,2]
[321051236,1711827046881,-2426.0,0.00040587,2]
[321051237,1711827046890,-150.0,0.00040587,2]
[321051238,1711827046899,-150.0,0.00040587,2]
[321051239,1711827046908,-213.0,0.00040587,2]
[321051240,1711827046917,-5687.0,0.00040587,2]
[321051241,1711827046926,-2452.0,0.00040587,2]
[321051242,1711827046935,-4777.0,0.00040587,2]
[321051243,1711827046944,-43018.0,0.00040587,2]
[321051244,1711827046954,-971.952,0.00040587,2]
[321051245,1711827046963,-1396.615,0.00040587,2]
[321051246,1711827046972,-458.0,0.00040587,2]
[321051247,1711827046981,-878.265,0.00040587,2]
[321051248,1711827046990,-504.71,0.00040587,2]
[321051249,1711827046999,-537.0,0.00040587,2]
[321051250,1711827047008,-1226.0,0.00040587,2]
[321051251,1711827047017,-464.29593286,0.00040662,2]
[321051252,1711827047027,-150.0,0.000407,6]
[321051253,1711827047037,-152.0,0.00040714,3]
[321051254,1711827047051,-800.0,0.000408,14]
[321051255,1711827047060,-1700.0,0.000409,14]
[321051256,1711827047070,-270.39245934,0.00040924,2]
[321051257,1711827047079,-270.39245934,0.00040926,2]
[321051258,1711827047088,-270.39245934,0.00040935,2]
[321051259,1711827047097,-800.0,0.00040958,10]
[321051260,1711827047106,-7336.62957728,0.00040958,2]
[321051261,1711827047115,-670.0,0.00040959,7]
[321051262,1711827047123,-540.0,0.00040959,7]
[321051263,1711827047133,-555.0,0.00040959,7]
[321051264,1711827047142,-270.39245934,0.00040979,2]
[321051265,1711827047152,-270.39245934,0.00040981,2]
[321051266,1711827047163,-167.0,0.00040983,2]
[321051267,1711827047176,-5000.0,0.00040985,2]
[321051268,1711827047186,-270.39245934,0.00040987,2]
[321051269,1711827047195,-270.39245934,0.00040988,2]
[321051270,1711827047205,-168.12455336,0.00040995,2]
[321051271,1711827047214,-2182.6564353,0.00040995,15]
[321051272,1711827047223,-7500.0,0.00040995,2]
[321051273,1711827047232,-3368.5161918,0.00041,2]
[321051274,1711827047244,-699.13807443,0.00041,4]
[321051275,1711827047254,-163.57,0.00041,2]
[321051276,1711827047263,-163.57,0.00041,2]
[321051277,1711827047272,-163.57,0.00041,2]
[321051278,1711827047281,-163.57,0.00041,2]
[321051279,1711827047291,-163.57,0.00041,2]
[321051280,1711827047300,-163.57,0.00041,2]
[321051281,1711827047310,-163.57,0.00041,2]
[321051282,1711827047319,-163.57,0.00041,2]
[321051283,1711827047328,-163.57,0.00041,2]
[321051284,1711827047337,-163.57,0.00041,2]
[321051285,1711827047347,-163.57,0.00041,2]
[321051286,1711827047356,-163.57,0.00041,2]
[321051287,1711827047365,-163.57,0.00041,2]
[321051288,1711827047374,-163.57,0.00041,2]
[321051289,1711827047383,-163.57,0.00041,2]
[321051290,1711827047393,-163.57,0.00041,2]
[321051291,1711827047402,-163.57,0.00041,2]
[321051292,1711827047412,-163.57,0.00041,2]
[321051293,1711827047421,-163.57,0.00041,2]
[321051294,1711827047431,-155.58,0.00041003,2]
[321051295,1711827047441,-150.0,0.00041003,2]
[321051296,1711827047450,-150.0,0.00041003,2]
[321051297,1711827047459,-5969.37142957,0.00041005,2]
[321051298,1711827047468,-226.90571627,0.00041038,13]
[321051299,1711827047478,-163.57,0.00041085,2]
[321051300,1711827047488,-163.57,0.00041085,2]
[321051301,1711827047497,-163.57,0.00041085,2]
[321051302,1711827047506,-163.57,0.00041085,2]
[321051303,1711827047515,-163.57,0.00041085,2]
[321051304,1711827047525,-464.29593286,0.00041092,2]
[321051305,1711827047534,-500.0,0.00041095,2]
[321051306,1711827047544,-500.0,0.00041095,4]
[321051307,1711827047553,-500.0,0.00041095,4]
[321051308,1711827047562,-500.0,0.00041095,4]
[321051309,1711827047572,-500.0,0.00041095,2]
[321051310,1711827047581,-500.0,0.00041095,4]
[321051311,1711827047590,-500.0,0.00041095,4]
[321051312,1711827047599,-500.0,0.00041095,4]
[321051313,1711827047608,-500.0,0.00041095,4]
[321051314,1711827047618,-500.0,0.00041095,4]
[321051315,1711827047627,-500.0,0.00041095,4]
[321051316,1711827047636,-500.0,0.00041095,4]
[321051317,1711827047646,-500.0,0.00041095,4]
[321051318,1711827047655,-500.0,0.00041095,4]
[321051319,1711827047664,-500.0,0.00041095,4]
[321051320,1711827047673,-500.0,0.00041095,4]
[321051321,1711827047683,-500.0,0.00041095,4]
[321051322,1711827047692,-500.0,0.00041095,4]
[321051323,1711827047701,-540.48573548,0.00041095,4]
[321051324,1711827047710,-500.0,0.00041095,4]
[321051325,1711827047719,-500.0,0.00041095,4]
[321051326,1711827047728,-637.78449723,0.00041095,4]
[321051327,1711827047737,-500.0,0.00041095,4]
[321051328,1711827047746,-500.0,0.00041095,4]
[321051329,1711827047755,-198.21662894,0.00041095,4]
[321051330,1711827047764,-500.0,0.00041095,4]
[321051331,1711827047773,-252.25492866,0.00041095,4]
[321051332,1711827047783,-500.0,0.00041095,4]
[321051333,1711827047792,-500.0,0.00041095,4]
[321051334,1711827047802,-544.43089396,0.00041095,4]
[321051335,1711827047811,-500.0,0.00041095,4]
[321051336,1711827047819,-500.0,0.00041095,4]
[321051337,1711827047829,-500.0,0.00041095,4]
[321051338,1711827047838,-500.0,0.00041095,4]
[321051339,1711827047847,-500.0,0.00041095,4]
[321051340,1711827047856,-500.0,0.00041095,4]
[321051341,1711827047867,-500.0,0.00041095,4]
[321051342,1711827047876,-500.0,0.00041095,4]
[321051343,1711827047885,-299.78186883,0.00041095,4]
[321051344,1711827047895,-500.0,0.00041095,4]
[321051345,1711827047904,-500.0,0.00041095,4]
[321051346,1711827047914,-500.0,0.00041095,4]
[321051347,1711827047923,-500.0,0.00041095,4]
[321051348,1711827047932,-500.0,0.00041095,4]
[321051349,1711827047944,-500.0,0.00041095,4]
[321051350,1711827047953,-500.0,0.00041095,4]
[321051351,1711827047963,-500.0,0.00041095,4]
[321051352,1711827047972,-231.3621673,0.00041095,4]
[321051353,1711827047982,-500.0,0.00041095,4]
[321051354,1711827047992,-500.0,0.00041095,4]
[321051355,1711827048000,-500.0,0.00041095,4]
[321051356,1711827048009,-500.0,0.00041095,4]
[321051357,1711827048019,-591.93,0.00041095,4]
[321051358,1711827048029,-500.0,0.00041095,4]
[321051359,1711827048039,-500.0,0.00041095,4]
[321051360,1711827048050,-500.0,0.00041095,4]
[321051361,1711827048059,-500.0,0.00041095,4]
[321051362,1711827048070,-500.0,0.00041095,4]
[321051363,1711827048079,-500.0,0.00041095,4]
[321051364,1711827048090,-526.11040398,0.00041095,4]
[321051365,1711827048288,-500.0,0.00041095,4]
[321051366,1711827048300,-500.0,0.00041095,4]
[321051367,1711827048311,-500.0,0.00041095,4]
[321051368,1711827048321,-500.0,0.00041095,4]
[321051369,1711827048330,-500.0,0.00041095,4]
[321051370,1711827048341,-500.0,0.00041095,4]
[321051371,1711827048351,-500.0,0.00041095,4]
[321051372,1711827048361,-500.0,0.00041095,4]
[321051373,1711827048372,-176.38523188,0.00041095,2]
[321051374,1711827048381,-500.0,0.00041095,4]
[321051375,1711827048391,-500.0,0.00041095,4]
[321051376,1711827048400,-500.0,0.00041095,4]
[321051377,1711827048409,-500.0,0.00041095,4]
[321051378,1711827048418,-500.0,0.00041095,4]
[321051379,1711827048428,-500.0,0.00041095,4]
[321051380,1711827048437,-500.0,0.00041095,4]
[321051381,1711827048446,-623.30816026,0.00041095,4]
[321051382,1711827048456,-500.0,0.00041095,4]
[321051383,1711827048465,-535.87112202,0.00041095,4]
[321051384,1711827048474,-500.0,0.00041095,4]
[321051385,1711827048483,-500.0,0.00041095,4]
[321051386,1711827048493,-1243.83,0.00041095,2]
[321051387,1711827048502,-500.0,0.00041095,4]
[321051388,1711827048511,-500.0,0.00041095,4]
[321051389,1711827048521,-500.0,0.00041095,4]
[321051390,1711827048530,-500.0,0.00041095,4]
[321051391,1711827048540,-500.0,0.00041095,4]
[321051392,1711827048549,-500.0,0.00041095,4]
[321051393,1711827048560,-500.0,0.00041095,4]
[321051394,1711827048570,-500.0,0.00041095,4]
[321051395,1711827048580,-500.0,0.00041095,4]
[321051396,1711827048590,-500.0,0.00041095,4]
[321051397,1711827048601,-500.0,0.00041095,4]
[321051398,1711827048612,-500.0,0.00041095,4]
[321051399,1711827048622,-500.0,0.00041095,4]
[321051400,1711827048632,-500.0,0.00041095,4]
[321051401,1711827048641,-500.0,0.00041095,4]
[321051402,1711827048651,-500.0,0.00041095,4]
[321051403,1711827048660,-276.15953791,0.00041095,4]
[321051404,1711827048670,-232.49204439,0.00041095,4]
[321051405,1711827048679,-500.0,0.00041095,4]
[321051406,1711827048689,-500.0,0.00041095,4]
[321051407,1711827048699,-500.0,0.00041095,4]
[321051408,1711827048708,-500.0,0.00041095,4]
[321051409,1711827048719,-543.94,0.00041095,2]
[321051410,1711827048729,-500.0,0.00041095,4]
[321051411,1711827048739,-500.0,0.00041095,4]
[321051412,1711827048748,-500.0,0.00041095,4]
[321051413,1711827048759,-500.0,0.00041095,4]
[321051414,1711827048768,-500.0,0.00041095,4]
[321051415,1711827048778,-500.0,0.00041095,4]
[321051416,1711827048788,-500.0,0.00041095,4]
[321051417,1711827048798,-500.0,0.00041095,4]
[321051418,1711827048807,-500.0,0.00041095,4]
[321051419,1711827048817,-500.0,0.00041095,4]
[321051420,1711827048826,-500.0,0.00041095,4]
[321051421,1711827048835,-500.0,0.00041095,4]
[321051422,1711827048844,-500.0,0.00041095,4]
[321051423,1711827048853,-500.0,0.00041095,4]
[321051424,1711827048862,-151.15378534,0.00041095,4]
[321051425,1711827048872,-500.0,0.00041095,4]
[321051426,1711827048882,-500.0,0.00041095,4]
[321051427,1711827048890,-500.0,0.00041095,4]
[321051428,1711827048900,-500.0,0.00041095,4]
[321051429,1711827048910,-500.0,0.00041095,4]
[321051430,1711827048920,-500.0,0.00041095,4]
[321051431,1711827048930,-500.0,0.00041095,4]
[321051432,1711827048939,-500.0,0.00041095,4]
[321051433,1711827048948,-500.0,0.00041095,4]
[321051434,1711827048957,-500.0,0.00041095,4]
[321051435,1711827048966,-500.0,0.00041095,4]
[321051436,1711827048976,-500.0,0.00041095,4]
[321051437,1711827048985,-500.0,0.00041095,4]
[321051438,1711827048995,-500.0,0.00041095,4]
[321051439,1711827049004,-500.0,0.00041095,4]
[321051440,1711827049014,-500.0,0.00041095,4]
[321051441,1711827049024,-500.0,0.00041095,4]
[321051442,1711827049033,-500.0,0.00041095,4]
[321051443,1711827049042,-500.0,0.00041095,4]
[321051444,1711827049052,-500.0,0.00041095,4]
[321051445,1711827049061,-500.0,0.00041095,4]
[321051446,1711827049070,-500.0,0.00041095,4]
[321051447,1711827049080,-500.0,0.00041095,4]
[321051448,1711827049091,-1304.93,0.00041095,4]
[321051449,1711827049100,-524.9373483,0.00041095,4]
[321051450,1711827049109,-500.0,0.00041095,4]
[321051451,1711827049118,-500.0,0.00041095,4]
[321051452,1711827049128,-500.0,0.00041095,4]
[321051453,1711827049137,-447.00123188,0.00041095,4]
[321051454,1711827049146,-500.0,0.00041095,4]
[321051455,1711827049156,-500.0,0.00041095,4]
[321051456,1711827049170,-500.0,0.00041095,4]
[321051457,1711827049179,-500.0,0.00041095,2]
[321051458,1711827049189,-500.0,0.00041095,4]
[321051459,1711827049198,-500.0,0.00041095,4]
[321051460,1711827049209,-500.0,0.00041095,4]
[321051461,1711827049217,-500.0,0.00041095,4]
[321051462,1711827049226,-663.08,0.00041095,4]
[321051463,1711827049235,-500.0,0.00041095,4]
[321051464,1711827049246,-500.0,0.00041095,4]
[321051465,1711827049256,-500.0,0.00041095,4]
[321051466,1711827049265,-500.0,0.00041095,4]
[321051467,1711827049275,-500.0,0.00041095,4]
[321051468,1711827049284,-500.0,0.00041095,4]
[321051469,1711827049293,-500.0,0.00041095,4]
[321051470,1711827049303,-500.0,0.00041095,4]
[321051471,1711827049313,-500.0,0.00041095,4]
[321051472,1711827049323,-500.0,0.00041095,4]
[321051473,1711827049333,-500.0,0.00041095,4]
[321051474,1711827049342,-500.0,0.00041095,4]
[321051475,1711827049353,-500.0,0.00041095,4]
[321051476,1711827049362,-500.0,0.00041095,4]
[321051477,1711827049372,-500.0,0.00041095,4]
[321051478,1711827049383,-500.0,0.00041095,4]
[321051479,1711827049393,-500.0,0.00041095,4]
[321051480,1711827049402,-500.0,0.00041095,4]
[321051481,1711827049414,-500.0,0.00041095,4]
[321051482,1711827049423,-500.0,0.00041095,4]
[321051483,1711827049433,-500.0,0.00041095,4]
[321051484,1711827049443,-500.0,0.00041095,4]
[321051485,1711827049453,-500.0,0.00041095,4]
[321051486,1711827049464,-500.0,0.00041095,4]
[321051487,1711827049473,-500.0,0.00041095,4]
[321051488,1711827049483,-768.31,0.00041095,4]
[321051489,1711827049492,-500.0,0.00041095,4]
[321051490,1711827049502,-251.56183055,0.00041095,4]
[321051491,1711827049513,-500.0,0.00041095,4]
[321051492,1711827049523,-500.0,0.00041095,4]
[321051493,1711827049533,-500.0,0.00041095,4]
[321051494,1711827049542,-500.0,0.00041095,4]
[321051495,1711827049552,-500.0,0.00041095,4]
[321051496,1711827049562,-500.0,0.00041095,4]
[321051497,1711827049572,-500.0,0.00041095,4]
[321051498,1711827049582,-500.0,0.00041095,4]
[321051499,1711827049592,-500.0,0.00041095,4]
[321051500,1711827049601,-500.0,0.00041095,4]
[321051501,1711827049610,-500.0,0.00041095,4]
[321051502,1711827049619,-500.0,0.00041095,4]
[321051503,1711827049629,-500.0,0.00041095,4]
[321051504,1711827049638,-500.0,0.00041095,4]
[321051505,1711827049648,-500.0,0.00041095,4]
[321051506,1711827049658,-500.0,0.00041095,4]
[321051507,1711827049667,-500.0,0.00041095,4]
[321051508,1711827049676,-500.0,0.00041095,4]
[321051509,1711827049686,-500.0,0.00041095,4]
[321051510,1711827049696,-572.76,0.00041095,4]
[321051511,1711827049705,-728.42,0.00041095,4]
[321051512,1711827049715,-500.0,0.00041095,4]
[321051513,1711827049725,-666.08,0.00041095,4]
[321051514,1711827049735,-262.87102311,0.00041095,4]
[321051515,1711827049745,-500.0,0.00041095,4]
[321051516,1711827049755,-627.59,0.00041095,4]
[321051517,1711827049764,-500.0,0.00041095,4]
[321051518,1711827049774,-500.0,0.00041095,4]
[321051519,1711827049783,-500.0,0.00041095,4]
[321051520,1711827049793,-500.0,0.00041095,4]
[321051521,1711827049802,-500.0,0.00041095,4]
[321051522,1711827049812,-500.0,0.00041095,4]
[321051523,1711827049822,-381.96083859,0.00041095,4]
[321051524,1711827049831,-539.31,0.00041095,4]
[321051525,1711827049841,-609.43,0.00041095,4]
[321051526,1711827049851,-500.0,0.00041095,4]
[321051527,1711827049860,-625.59,0.00041095,4]
[321051528,1711827049869,-500.0,0.00041095,4]
[321051529,1711827049878,-500.0,0.00041095,4]
[321051530,1711827049888,-500.0,0.00041095,4]
[321051531,1711827049897,-571.95242523,0.00041095,4]
[321051532,1711827049906,-500.0,0.00041095,4]
[321051533,1711827049916,-500.0,0.00041095,4]
[321051534,1711827049925,-556.19,0.00041095,4]
[321051535,1711827049934,-500.0,0.00041095,4]
[321051536,1711827049943,-500.0,0.00041095,4]
[321051537,1711827049953,-500.0,0.00041095,4]
[321051538,1711827049962,-500.0,0.00041095,4]
[321051539,1711827049971,-500.0,0.00041095,4]
[321051540,1711827049981,-500.0,0.00041095,4]
[321051541,1711827049990,-500.0,0.00041095,4]
[321051542,1711827050000,-500.0,0.00041095,4]
[321051543,1711827050010,-500.0,0.00041095,2]
[321051544,1711827050019,-500.0,0.00041095,4]
[321051545,1711827050029,-500.0,0.00041095,4]
[321051546,1711827050038,-500.0,0.00041095,4]
[321051547,1711827050048,-500.0,0.00041095,4]
[321051548,1711827050058,-445.20024915,0.00041095,4]
[321051549,1711827050067,-500.0,0.00041095,4]
[321051550,1711827050077,-500.0,0.00041095,4]
[321051551,1711827050087,-500.0,0.00041095,4]
[321051552,1711827050097,-500.0,0.00041095,4]
[321051553,1711827050106,-500.0,0.00041095,4]
[321051554,1711827050116,-500.0,0.00041095,4]
[321051555,1711827050126,-500.0,0.00041095,4]
[321051556,1711827050135,-500.0,0.00041095,4]
[321051557,1711827050145,-500.0,0.00041095,4]
[321051558,1711827050154,-500.0,0.00041095,4]
[321051559,1711827050166,-500.0,0.00041095,4]
[321051560,1711827050175,-500.0,0.00041095,4]
[321051561,1711827050184,-500.0,0.00041095,4]
[321051562,1711827050194,-524.15,0.00041095,4]
[321051563,1711827050203,-500.0,0.00041095,4]
[321051564,1711827050213,-500.0,0.00041095,4]
[321051565,1711827050223,-500.0,0.00041095,4]
[321051566,1711827050232,-500.0,0.00041095,4]
[321051567,1711827050243,-500.0,0.00041095,4]
[321051568,1711827050253,-500.0,0.00041095,4]
[321051569,1711827050263,-500.0,0.00041095,4]
[321051570,1711827050272,-500.0,0.00041095,4]
[321051571,1711827050281,-500.0,0.00041095,4]
[321051572,1711827050291,-500.0,0.00041095,4]
[321051573,1711827050300,-500.0,0.00041095,4]
[321051574,1711827050310,-500.0,0.00041095,4]
[321051575,1711827050319,-500.0,0.00041095,4]
[321051576,1711827050330,-273.38672556,0.00041095,4]
[321051577,1711827050340,-500.0,0.00041095,4]
[321051578,1711827050350,-500.0,0.00041095,4]
[321051579,1711827050361,-500.0,0.00041095,4]
[321051580,1711827050371,-500.0,0.00041095,4]
[321051581,1711827050381,-500.0,0.00041095,4]
[321051582,1711827050391,-500.0,0.00041095,4]
[321051583,1711827050401,-500.0,0.00041095,4]
[321051584,1711827050411,-220.24590726,0.00041095,4]
[321051585,1711827050421,-500.0,0.00041095,4]
[321051586,1711827050431,-500.0,0.00041095,4]
[321051587,1711827050441,-500.0,0.00041095,4]
[321051588,1711827050451,-500.0,0.00041095,4]
[321051589,1711827050461,-500.0,0.00041095,4]
[321051590,1711827050471,-500.0,0.00041095,4]
[321051591,1711827050481,-500.0,0.00041095,4]
[321051592,1711827050490,-500.0,0.00041095,4]
[321051593,1711827050500,-500.0,0.00041095,4]
[321051594,1711827050509,-500.0,0.00041095,4]
[321051595,1711827050519,-500.0,0.00041095,4]
[321051596,1711827050529,-692.82,0.00041095,4]
[321051597,1711827050539,-500.0,0.00041095,4]
[321051598,1711827050548,-500.0,0.00041095,4]
[321051599,1711827050558,-504.03,0.00041095,4]
[321051600,1711827050567,-1707.51,0.00041095,4]
[321051601,1711827050577,-530.02,0.00041095,4]
[321051602,1711827050586,-500.0,0.00041095,4]
[321051603,1711827050596,-500.0,0.00041095,4]
[321051604,1711827050606,-500.0,0.00041095,4]
[321051605,1711827050616,-500.0,0.00041095,4]
[321051606,1711827050628,-768.43,0.00041095,4]
[321051607,1711827050637,-500.0,0.00041095,4]
[321051608,1711827050647,-500.0,0.00041095,4]
[321051609,1711827050656,-500.0,0.00041095,4]
[321051610,1711827050666,-500.0,0.00041095,4]
[321051611,1711827050675,-656.72,0.00041095,4]
[321051612,1711827050684,-515.21,0.00041095,4]
[321051613,1711827050694,-500.0,0.00041095,4]
[321051614,1711827050703,-500.0,0.00041095,4]
[321051615,1711827050713,-552.57,0.00041095,4]
[321051616,1711827050723,-500.0,0.00041095,4]
[321051617,1711827050733,-887.3,0.00041095,4]
[321051618,1711827050743,-266.49621271,0.00041095,4]
[321051619,1711827050753,-500.0,0.00041095,4]
[321051620,1711827050763,-1280.4,0.00041095,4]
[321051621,1711827050772,-500.0,0.00041095,4]
[321051622,1711827050782,-207.91,0.00041095,4]
[321051623,1711827050792,-500.0,0.00041095,4]
[321051624,1711827050802,-533.11,0.00041095,4]
[321051625,1711827050812,-500.0,0.00041095,4]
[321051626,1711827050822,-500.0,0.00041095,4]
[321051627,1711827050832,-500.0,0.00041095,4]
[321051628,1711827050841,-500.0,0.00041095,4]
[321051629,1711827050851,-500.0,0.00041095,4]
[321051630,1711827050861,-533.03,0.00041095,4]
[321051631,1711827050870,-500.0,0.00041095,4]
[321051632,1711827050880,-614.58,0.00041095,4]
[321051633,1711827050889,-500.0,0.00041095,4]
[321051634,1711827050898,-500.0,0.00041095,4]
[321051635,1711827050908,-500.0,0.00041095,4]
[321051636,1711827050918,-500.0,0.00041095,4]
[321051637,1711827050927,-500.0,0.00041095,4]
[321051638,1711827050937,-500.0,0.00041095,4]
[321051639,1711827050946,-500.0,0.00041095,4]
[321051640,1711827050955,-500.0,0.00041095,4]
[321051641,1711827050965,-500.0,0.00041095,4]
[321051642,1711827050974,-500.0,0.00041095,4]
[321051643,1711827050984,-500.0,0.00041095,4]
[321051644,1711827050993,-500.0,0.00041095,15]
[321051645,1711827051002,-500.0,0.00041095,4]
[321051646,1711827051011,-500.0,0.00041095,4]
[321051647,1711827051021,-500.0,0.00041095,4]
[321051648,1711827051030,-514.9,0.00041095,4]
[321051649,1711827051039,-500.0,0.00041095,4]
[321051650,1711827051048,-500.0,0.00041095,4]
[321051651,1711827051058,-500.0,0.00041095,4]
[321051652,1711827051067,-500.0,0.00041095,4]
[321051653,1711827051077,-500.0,0.00041095,4]
[321051654,1711827051086,-500.0,0.00041095,4]
[321051655,1711827051096,-500.0,0.00041095,4]
[321051656,1711827051105,-500.0,0.00041095,4]
[321051657,1711827051114,-500.0,0.00041095,2]
[321051658,1711827051124,-550.67,0.00041095,4]
[321051659,1711827051133,-500.0,0.00041095,4]
[321051660,1711827051142,-500.0,0.00041095,4]
[321051661,1711827051152,-500.0,0.00041095,4]
[321051662,1711827051164,-500.0,0.00041095,4]
[321051663,1711827051174,-500.0,0.00041095,4]
[321051664,1711827051183,-500.0,0.00041095,4]
[321051665,1711827051193,-500.0,0.00041095,4]
[321051666,1711827051202,-500.0,0.00041095,4]
[321051667,1711827051211,-605.81226036,0.00041095,4]
[321051668,1711827051221,-500.0,0.00041095,4]
[321051669,1711827051231,-300.0,0.00041095,2]
[321051670,1711827051242,-500.0,0.00041095,4]
[321051671,1711827051252,-500.0,0.00041095,4]
[321051672,1711827051262,-500.0,0.00041095,4]
[321051673,1711827051271,-653.16,0.00041095,4]
[321051674,1711827051281,-2357.66,0.00041095,4]
[321051675,1711827051290,-500.0,0.00041095,4]
[321051676,1711827051301,-500.0,0.00041095,4]
[321051677,1711827051311,-500.0,0.00041095,4]
[321051678,1711827051320,-500.0,0.00041095,4]
[321051679,1711827051330,-8199.92,0.00041095,4]
[321051680,1711827051340,-2452.45,0.00041095,4]
[321051681,1711827051349,-640.94,0.00041095,4]
[321051682,1711827051359,-1539.11,0.00041095,4]
[321051683,1711827051369,-1286.75,0.00041095,4]
[321051684,1711827051378,-500.0,0.00041095,4]
[321051685,1711827051388,-500.0,0.00041095,4]
[321051686,1711827051397,-500.0,0.00041095,4]
[321051687,1711827051407,-1808.83,0.00041095,4]
[321051688,1711827051417,-3621.69,0.00041095,4]
[321051689,1711827051427,-500.0,0.00041095,4]
[321051690,1711827051436,-3930.49,0.00041095,4]
[321051691,1711827051446,-500.0,0.00041095,4]
[321051692,1711827051459,-500.0,0.00041095,4]
[321051693,1711827051469,-500.0,0.00041095,4]
[321051694,1711827051479,-2510.36,0.00041095,4]
[321051695,1711827051489,-500.0,0.00041095,4]
[321051696,1711827051498,-543.59,0.00041095,4]